Cogmind - Beta 11.1 @@@ ROGUE MODE // 2022.05.24 @ 21:23:42 Player: darki Result: Destroyed by TJ-JCB(z) with Makeshift Laser Performance ------------- Evolutions (3) 1500 Regions Visited (12) 2400 Robots Destroyed (137) 685 Value Destroyed (3621) 3621 Prototype IDs (30) 600 Alien Tech Used (0) 0 Bonus (-10) -10 TOTAL SCORE: 8796 Bonus ------- Follower Combat Kills 37 Aligned with FarCom 300 Met Imprinter 300 Friendly Fire -647 Cogmind --------- Core Integrity 0/700 Matter 35/300 Energy 141/240 System Corruption 0% Temperature Cool (9) Movement Walking (140) Location -7/Zion Parts ------- > --- POWER (1) -------- Nuclear Core > --- PROPULSION (4) --- Makeshift Leg Makeshift Leg Makeshift Leg Makeshift Leg > --- UTILITY (5) ------ Coolant Injector High-capacity Storage Unit Core Analyzer Armor Integrity Analyzer Component Analysis Suite > --- WEAPON (3) ------- Gauss Rifle Slug Cannon Missile Launcher > --- INVENTORY (20) --- Improved Deuterium Engine Improved Heat Sink Experimental Sensor Array Makeshift Armor Plating Shock Absorption System Improved Field Recycling Unit (0) Phasing AFG Heavy Beamcaster Advanced EMP Blaster Proton Missile Launcher Missile Launcher Field Lobotomy Kit (2) RU-N14's Throwing Claymores (10) RU-N14's Throwing Claymores (10) RU-N14's Throwing Claymores (10) RU-N14's Throwing Claymores (10) Power Maul Peak State ------------ > --- POWER ------------ Nuclear Core > --- PROPULSION ------- Makeshift Leg Makeshift Leg Makeshift Leg Makeshift Leg > --- UTILITY ---------- Coolant Injector High-capacity Storage Unit Core Analyzer Armor Integrity Analyzer Component Analysis Suite > --- WEAPON ----------- Gauss Rifle Slug Cannon Field Lobotomy Kit > --- INVENTORY -------- Nuclear Core Improved Deuterium Engine Makeshift Leg Improved Heat Sink Experimental Sensor Array Makeshift Armor Plating Shock Absorption System Improved Field Recycling Unit Phasing AFG Heavy Beamcaster Advanced EMP Blaster Proton Missile Launcher Missile Launcher Missile Launcher RU-N14's Throwing Claymores RU-N14's Throwing Claymores RU-N14's Throwing Claymores RU-N14's Throwing Claymores Power Maul [Rating: 64] Favorites ----------- Power Cooled Ion Engine Engine Cooled Ion Engine Power Core Nuclear Core Propulsion Aluminum Leg Treads Improved Treads Leg Aluminum Leg Hover Unit Hover Unit Flight Unit Makeshift Flight Unit Utility Armor Integrity Analyzer Device Improved Heat Sink Storage High-capacity Storage Unit Processor Armor Integrity Analyzer Protection Reactive Plating Weapon Assault Cannon Energy Gun Gatling Laser Ballistic Gun Heavy Assault Rifle Ballistic Cannon Assault Cannon Launcher Advanced EMP Blaster Special Weapon RU-N14's Throwing Claymores Impact Weapon Power Maul Build | -11 -10 -10 -9 -9 -9 -8 -8 -8 -7 -7 -7 -7 ------- Run | Scr Mat Min Mat Min Exi Min Mat Sto Fac Low Low Zio Slots Evolved 6 | . . . 2 . . . 2 . 2 . . . Power . | . . . . . . . . . . . . . Propulsion 2 | . . . . . . . 1 . 1 . . . Utility 3 | . . . 2 . . . . . 1 . . . Weapon 1 | . . . . . . . 1 . . . . . Parts Attached 113 | . 2 6 18 . 2 2 4 19 21 7 5 27 Power 11 | . 1 . 3 . . . 2 2 . 1 1 1 Engine 7 | . . . 3 . . . 2 1 . 1 . . Core 4 | . 1 . . . . . . 1 . . 1 1 Reactor . | . . . . . . . . . . . . . Propulsion 27 | . . 2 4 . . 1 1 4 4 1 1 9 Treads 4 | . . . 1 . . . . . 2 . 1 . Leg 20 | . . 2 2 . . 1 1 4 1 1 . 8 Wheel . | . . . . . . . . . . . . . Hover 1 | . . . 1 . . . . . . . . . Flight 2 | . . . . . . . . . 1 . . 1 Utility 22 | . 1 2 3 . . 1 . 4 9 . 1 1 Device 7 | . . 1 1 . . . . . 3 . 1 1 Storage 3 | . 1 1 . . . . . . 1 . . . Processor 8 | . . . 2 . . 1 . 1 4 . . . Hackware . | . . . . . . . . . . . . . Protection 4 | . . . . . . . . 3 1 . . . Artifact . | . . . . . . . . . . . . . Weapon 53 | . . 2 8 . 2 . 1 9 8 5 2 16 Energy Gun 7 | . . . . . . . . 1 1 2 1 2 Energy Cannon . | . . . . . . . . . . . . . Ballistic Gun 8 | . . 1 4 . . . . . 2 . . 1 Ballistic Cannon 14 | . . . 4 . 1 . 1 3 1 2 1 1 Launcher 6 | . . 1 . . . . . 1 . . . 4 Special Weapon 8 | . . . . . 1 . . . . . . 7 Impact Weapon 10 | . . . . . . . . 4 4 1 . 1 Slashing Weapon . | . . . . . . . . . . . . . Piercing Weapon . | . . . . . . . . . . . . . Special Melee Weapon . | . . . . . . . . . . . . . Unidentified Prototypes 5 | . . . 1 . . . . 2 1 . . 1 Corrupted Parts 3 | . . . 1 . . . . 1 1 . . . System Corruption 13 | . . . 1 . . . . 2 10 . . . Parts Lost 37 | . . . 3 . . . . 13 3 7 5 6 Power 6 | . . . 1 . . . . 2 . 1 1 1 Propulsion 17 | . . . 2 . . . . 3 2 4 1 5 Utility 4 | . . . . . . . . 2 1 . 1 . Weapon 10 | . . . . . . . . 6 . 2 2 . Highest Loss Streak 11 | . . . 1 . . . . 11 2 4 2 3 To Critical Strikes 1 | . . . 1 . . . . . . . . . Average Slot Usage (%) 88 | . 85 89 97 100 100 99 99 87 86 92 69 92 Engine 5 | . 12 . 8 11 11 11 9 6 7 7 5 . Core 3 | . 1 14 2 . . . . . . . 1 6 Treads 3 | . . . 4 . . . . . 4 10 . 6 Leg 15 | . 28 28 12 22 22 22 26 25 18 12 1 13 Flight 1 | . . . . . . . . . . . . 4 Device 9 | . . 4 20 11 11 11 9 3 3 7 8 15 Storage 8 | . 14 14 11 11 11 11 9 9 7 7 7 7 Processor 15 | . . . 11 22 22 21 18 12 11 23 20 15 Protection 1 | . . . . . . . . 5 10 . . . Energy Gun 3 | . . . . . . . . . . 8 14 . Ballistic Gun 4 | . 28 24 17 . . . . . 4 2 . . Ballistic Cannon 6 | . . . 4 22 21 22 26 12 1 9 7 . Special Weapon 3 | . . . . . . . . . . . . 12 Impact Weapon 3 | . . . . . . . . 11 15 . . 4 Naked Turns . | . . . . . . . . . . . . . Heaviest Build 73 | 13 23 29 43 39 42 39 45 58 62 65 64 73 Greatest Support 80 | 20 20 20 30 30 30 35 45 47 40 40 23 80 Greatest Overweight (x) 21 | . 1 1 3 1 1 1 1 2 2 19 21 4 Average Overweight (x) 1 | . . . 1 1 1 1 . . 1 1 11 1 Largest Inventory Capacity 20 | . 10 15 15 15 15 15 15 15 20 20 20 20 Average Capacity 17 | . 9 14 15 15 15 15 15 15 15 20 20 20 Most Carried 20 | . 10 15 15 15 15 15 15 15 20 19 15 20 Average Carried 15 | . 8 13 14 15 15 14 14 13 15 16 14 19 Final Capacity 20 | 8 10 15 15 15 15 15 15 15 20 20 20 20 Final Carried 19 | 6 10 15 15 15 15 15 15 13 19 15 15 17 Class Distribution -------------------- 36% | Mutant 20% | Gunner 16% | Derelict-Mutant 9% | Scavenger-Skirmisher 7% | Skirmisher 6% | Scavenger-Gunner Dominant Class ---------------- Mutant | -10/Materials Mutant | -10/Mines Mutant | -9/Materials Mutant | -9/Mines Mutant | -9/Exiles Skirmisher | -8/Mines Scavenger-Skirmisher | -8/Materials Mutant | -8/Storage Mutant | -7/Factory Scavenger-Gunner | -7/Lower Caves Gunner | -7/Lower Caves Derelict-Mutant | -7/Zion Resources | -11 -10 -10 -9 -9 -9 -8 -8 -8 -7 -7 -7 -7 ----------- Run | Scr Mat Min Mat Min Exi Min Mat Sto Fac Low Low Zio Matter Collected 3637 | 188 188 157 444 . . 354 155 756 234 380 339 442 Remotely . | . . . . . . . . . . . . . Salvage Created 4125 | . 344 59 670 . . 296 145 1055 400 408 251 497 Parts 232 | . 29 4 40 . . 21 12 38 12 23 15 38 Haulers Intercepted 5 | . . . 1 . . . 1 3 . . . . Recyclers Shooed 4 | . 1 . 1 . . . . 2 . . . . Parts Field Recycled . | . . . . . . . . . . . . . Retrieved Matter . | . . . . . . . . . . . . . Parts Self-Destructed 39 | . . . . . . . . . . 23 16 . Prevented 1 | . . . . . . . . . . 1 . . Kills | -11 -10 -10 -9 -9 -9 -8 -8 -8 -7 -7 -7 -7 ------- Run | Scr Mat Min Mat Min Exi Min Mat Sto Fac Low Low Zio Combat Hostiles Destroyed 93 | . 9 7 13 . . 11 7 12 8 16 8 2 Melee 3 | . . . . . . . . 2 1 . . . Guns 36 | . 9 3 9 . . . . . 3 8 4 . Cannons 42 | . . . 4 . . 11 7 8 . 8 4 . AOE 5 | . . 4 . . . . . . . . . 1 Classes Destroyed 16 | . 4 2 4 . . 1 . . 1 1 . 3 Worker 4 | . . 1 1 . . . . 2 . . . . Builder 4 | . . . 1 . . 1 . 2 . . . . Hauler 5 | . . . 1 . . . 1 3 . . . . Recycler 8 | . 1 . 1 . . 1 . 5 . . . . Operator 2 | . . . 1 . . . . 1 . . . . Watcher 7 | . 2 . . . . . 2 2 1 . . . Swarmer 36 | . 6 . 4 . . 7 6 . . 9 4 . Grunt 25 | . 3 2 6 . . 3 . 4 2 2 3 . Duelist 1 | . . . . . . . . . . 1 . . Sentry 15 | . . . 3 . . . 1 7 3 1 . . Hunter 3 | . . . . . . 1 . 1 . 1 . . Programmer 6 | . . . . . . . . . 3 2 1 . Zionite 17 | . . . . . . . . . . . . 17 Tinkerer 1 | . . . . . . . . . . . . 1 Assembled 5 | . . 5 . . . . . . . . . . Mutant 4 | . . . . . . . . . . . . 4 Best Kill Streak 7 | . 4 4 5 . . 7 3 7 3 5 4 7 Combat Bots Only 5 | . 3 4 3 . . 5 3 2 3 5 4 2 Max Kills in Single Turn 2 | . 1 2 2 . . 1 1 2 1 1 1 2 Gunslinging . | . . . . . . . . . . . . . Exploded 1 | . . 1 . . . . . . . . . 1 Melee 1 | . . . . . . . . 1 1 . . . Uniques/NPCs Destroyed . | . . . . . . . . . . . . . Combat | -11 -10 -10 -9 -9 -9 -8 -8 -8 -7 -7 -7 -7 -------- Run | Scr Mat Min Mat Min Exi Min Mat Sto Fac Low Low Zio Damage Taken 7406 | . 443 253 456 . . 428 236 1894 803 1086 656 1151 Core 1481 | . 119 57 24 . . 106 49 411 92 203 188 232 Absorbed by Shields . | . . . . . . . . . . . . . Regen/Repaired (Parts) 79 | . . . 79 . . . . . . . . . Core Remaining (%) 53 | 100 . 29 . . . 67 . 16 . . . . Volleys Fired 266 | . 39 21 40 . . 25 17 31 7 29 16 41 Largest 3 | . 2 2 2 . . 2 3 3 3 3 3 3 Hottest 188 | . 40 40 80 . . 88 132 132 94 172 188 157 Shots Fired 641 | . 78 34 80 . . 51 51 91 21 81 48 106 Gun 316 | . 78 27 60 . . . . . 14 47 31 59 Cannon 307 | . . . 20 . . 51 51 91 7 34 17 36 Launcher 15 | . . 7 . . . . . . . . . 8 Special 3 | . . . . . . . . . . . . 3 Kinetic 540 | . 78 27 80 . . 51 51 91 21 52 17 72 Thermal 83 | . . . . . . . . . . 29 31 23 Explosive 11 | . . 7 . . . . . . . . . 4 Electromagnetic 4 | . . . . . . . . . . . . 4 Robot Hit Streak 15 | . 13 3 9 . . 5 8 15 5 12 11 11 Robot Miss Streak 6 | . 5 3 5 . . 3 2 4 2 4 6 5 Penetration Max 1 | . . . 1 . . . . . . . . 1 Secondary Targets 1 | . 1 . . . . . . . . . . . Max Gunslinging Chain 1 | . 1 . . . . . . . . . . . Shots Hit Robots 411 | . 44 19 45 . . 25 25 81 37 59 24 52 Core Hits 212 | . 21 17 24 . . 16 10 24 10 47 13 30 Critical Kills 4 | . . . 2 . . . . 1 1 . . . Critical Parts Destroyed 13 | . 1 . 3 . . . . 4 4 . . 1 Critical Strikes 25 | . 1 . 6 . . 1 . 7 7 . 2 1 Burn 1 | . . . . . . . . . . . 1 . Destroy 9 | . 1 . 6 . . . . . 1 . . 1 Blast 5 | . . . . . . 1 . 2 1 . 1 . Smash 10 | . . . . . . . . 5 5 . . . Melee Attacks 83 | . . . . . . . . 30 45 1 . 7 Impact 83 | . . . . . . . . 30 45 1 . 7 Slashing . | . . . . . . . . . . . . . Piercing . | . . . . . . . . . . . . . Sneak Attacks 8 | . . . . . . . . 8 . . . . Combat Hostiles . | . . . . . . . . . . . . . Follow-up Attacks 13 | . . . . . . . . 4 9 . . . Damage Inflicted 10378 | . 482 425 824 . . 550 637 2629 1291 1168 549 1823 Guns 3024 | . 482 121 598 . . . . . 172 621 314 716 Cannons 4036 | . . . 226 . . 550 637 1395 55 547 235 391 Explosions 1020 | . . 304 . . . . . . . . . 716 Melee 2288 | . . . . . . . . 1224 1064 . . . Ramming 10 | . . . . . . . . 10 . . . . Kinetic 5921 | . 482 121 824 . . 550 637 1395 227 640 235 810 Thermal 1200 | . . 61 . . . . . . . 528 314 297 Explosive 611 | . . 243 . . . . . . . . . 368 Electromagnetic 348 | . . . . . . . . . . . . 348 Impact 2288 | . . . . . . . . 1224 1064 . . . Slashing . | . . . . . . . . . . . . . Piercing . | . . . . . . . . . . . . . Highest Corruption 10 | . . . 1 1 1 1 . 2 10 8 9 9 Average Corruption 5 | . . . 1 1 1 1 . 2 4 7 8 9 Corruption Purged 5 | . . . . . . . . . 5 . . . Corruption Blocked . | . . . . . . . . . . . . . Effects 191 | . . . 1 . 3 11 . 6 30 37 89 14 Message Errors 51 | . . . 1 . 1 3 . 3 6 10 23 4 Matter Fused 46 | . . . . . 2 4 . 1 11 10 15 3 Heat Flow Errors 24 | . . . . . . 1 . . 4 7 11 1 Energy Discharges 27 | . . . . . . 1 . 1 5 5 14 1 Parts Rejected 1 | . . . . . . . . . . 1 . . Data Loss (minor) 24 | . . . . . . 1 . 1 1 2 15 4 Data Loss (major) 9 | . . . . . . . . . 2 2 4 1 Misfires 6 | . . . . . . 1 . . . . 5 . Alerts 3 | . . . . . . . . . 1 . 2 . Overload Shots 2 | . . . . . . . . . . . 2 . Overflow Damage 822 | . . 13 . . . 3 6 474 314 . . 12 Projectiles 44 | . . . . . . 3 6 35 . . . . Explosions 25 | . . 13 . . . . . . . . . 12 Melee 753 | . . . . . . . . 439 314 . . . Knockbacks 47 | . . . . . . 3 3 21 8 7 1 4 Impact 14 | . . . . . . . . 6 8 . . . Kinetic 32 | . . . . . . 3 3 14 . 7 1 4 Secondary 1 | . . . . . . . . 1 . . . . Self-Inflicted Damage 13 | . . 13 . . . . . . . . . . Shots 1 | . . 1 . . . . . . . . . . Rammed . | . . . . . . . . . . . . . Targets Rammed 2 | . . . . . . . . 2 . . . . Kicked 2 | . . . . . . . . 2 . . . . Crushed . | . . . . . . . . . . . . . Highest Temperature 596 | . 18 17 434 . . 276 192 596 224 230 278 198 Average Temperature 104 | . 8 5 235 . . 87 76 183 70 67 76 105 Received Heat Transfer 1865 | . 102 26 174 . . 144 27 945 132 45 135 135 Effects 16 | . . . . . . 1 . 15 . . . . Shutdowns 2 | . . . . . . . . 2 . . . . Energy Bleed 2 | . . . . . . 1 . 1 . . . . Matter Decay 3 | . . . . . . . . 3 . . . . Short Circuit 3 | . . . . . . . . 3 . . . . Damage (minor) 1 | . . . . . . . . 1 . . . . Damage (major) 4 | . . . . . . . . 4 . . . . Damage (core) 1 | . . . . . . . . 1 . . . . Siege Activations . | . . . . . . . . . . . . . Robots Corrupted 1 | . . . . . . . . . . . . 1 Combat Hostiles 1 | . . . . . . . . . . . . 1 Parts Fried 17 | . . . . . . . . 12 3 . . 2 Impact Corruptions 34 | . . . . . . . . 17 17 . . . Robots Melted . | . . . . . . . . . . . . . Combat Hostiles . | . . . . . . . . . . . . . Parts Melted 5 | . . . . . . . . . . 1 1 3 Heat Transferred 2439 | . . 100 . . . . . . . 1149 709 481 Parts Sabotaged . | . . . . . . . . . . . . . Parts Stolen . | . . . . . . . . . . . . . Parts Stripped . | . . . . . . . . . . . . . Power Chain Reactions . | . . . . . . . . . . . . . Missiles Intercepted . | . . . . . . . . . . . . . Alert | -11 -10 -10 -9 -9 -9 -8 -8 -8 -7 -7 -7 -7 ------- Run | Scr Mat Min Mat Min Exi Min Mat Sto Fac Low Low Zio Peak Influence 395 | . 210 283 264 36 . 195 168 395 146 . . . Initial 91 | . . 81 . 36 . . 37 70 91 . . . Average 89 | . 58 106 93 36 . 51 90 212 51 . . . Maximum Alert Level 1 | . 1 1 1 . . . . 1 . . . . Low Security (%) 88 | . 96 77 95 100 . 100 100 42 100 . . . Level 1 11 | . 3 22 4 . . . . 57 . . . . Level 2 . | . . . . . . . . . . . . . Level 3 . | . . . . . . . . . . . . . Level 4 . | . . . . . . . . . . . . . Level 5 . | . . . . . . . . . . . . . High Security . | . . . . . . . . . . . . . Max Security . | . . . . . . . . . . . . . Squads Dispatched 9 | . 1 . 1 . . . 1 1 5 . . . Investigation 2 | . 1 . . . . . . . 1 . . . Extermination 4 | . . . . . . . . . 4 . . . Reinforcement 3 | . . . 1 . . . 1 1 . . . . Assault . | . . . . . . . . . . . . . Garrison . | . . . . . . . . . . . . . Intercept . | . . . . . . . . . . . . . Searches Triggered . | . . . . . . . . . . . . . Construction Impeded . | . . . . . . . . . . . . . Haulers Reinforced . | . . . . . . . . . . . . . Active Scanning Responses . | . . . . . . . . . . . . . Cargo Convoy Interrupts . | . . . . . . . . . . . . . Stealth | -11 -10 -10 -9 -9 -9 -8 -8 -8 -7 -7 -7 -7 --------- Run | Scr Mat Min Mat Min Exi Min Mat Sto Fac Low Low Zio Distress Signals 5 | . 1 2 . . . . 1 1 . . . . Communications Jammed . | . . . . . . . . . . . . . Distress Signals . | . . . . . . . . . . . . . Times Spotted 150 | . 17 7 14 . . 11 10 16 10 16 8 41 Peak Tracking Total 7 | . 5 4 4 . . 4 4 4 2 5 4 7 Tactical Retreats 10 | . . 1 1 . . . 1 . . . . 7 Traps | -11 -10 -10 -9 -9 -9 -8 -8 -8 -7 -7 -7 -7 ------- Run | Scr Mat Min Mat Min Exi Min Mat Sto Fac Low Low Zio Traps Triggered 2 | . 1 . . . . . . . 1 . . . Indirectly . | . . . . . . . . . . . . . Trap Hack Attempts . | . . . . . . . . . . . . . Triggered . | . . . . . . . . . . . . . Disarmed . | . . . . . . . . . . . . . Reprogrammed . | . . . . . . . . . . . . . Reused . | . . . . . . . . . . . . . Traps Extracted . | . . . . . . . . . . . . . Installed 2 | . . . . . . . . . . 2 . . Triggered 5 | . . . . . . . . . . 3 2 . Machines | -11 -10 -10 -9 -9 -9 -8 -8 -8 -7 -7 -7 -7 ---------- Run | Scr Mat Min Mat Min Exi Min Mat Sto Fac Low Low Zio Machines Disabled 10 | . . 2 2 . . . 3 2 . 1 . . Max in Single Turn 2 | . . 2 1 . . . 2 1 . 1 . . Machines Sabotaged . | . . . . . . . . . . . . . Garrisons Compromised . | . . . . . . . . . . . . . Overloaded Fab Kills . | . . . . . . . . . . . . . Hacking | -11 -10 -10 -9 -9 -9 -8 -8 -8 -7 -7 -7 -7 --------- Run | Scr Mat Min Mat Min Exi Min Mat Sto Fac Low Low Zio Machines Accessed 16 | . 4 . 3 . 1 1 . 2 3 2 . . Terminals 10 | . 3 . 2 . . 1 . 2 2 . . . Fabricators . | . . . . . . . . . . . . . Repair Stations 1 | . . . 1 . . . . . . . . . Recycling Units 2 | . 1 . . . . . . . 1 . . . Scanalyzers . | . . . . . . . . . . . . . Garrison Access . | . . . . . . . . . . . . . Total Hacks 29 | . 7 . 6 . 1 1 . 4 4 6 . . Successful 16 | . 1 . 3 . 1 1 . 2 2 6 . . Failed 13 | . 6 . 3 . . . . 2 2 . . . Catastrophic 4 | . 2 . 1 . . . . 1 . . . . Database Lockouts . | . . . . . . . . . . . . . Manual 17 | . 7 . 2 . 1 . . 2 4 . . 1 Terminals 16 | . 6 . 2 . . 1 . 4 3 . . . Fabricators . | . . . . . . . . . . . . . Repair Stations 4 | . . . 4 . . . . . . . . . Recycling Units 2 | . 1 . . . . . . . 1 . . . Scanalyzers . | . . . . . . . . . . . . . Garrison Access . | . . . . . . . . . . . . . Terminal Hacks 13 | . 1 . 1 . 1 1 . 2 1 6 . . Record 5 | . . . . . . . . . . 5 . . Open Door 1 | . . . . . . . . . . 1 . . Branch Access Points 3 | . 1 . 1 . . . . . 1 . . . Alert Level 1 | . . . . . . . . 1 . . . . Locate Traps 1 | . . . . . . . . 1 . . . . Zone Layout 1 | . . . . . . 1 . . . . . . EX-Prototype ID Bank 1 | . . . . . 1 . . . . . . . Fabricator Hacks . | . . . . . . . . . . . . . Repair Station Hacks 2 | . . . 2 . . . . . . . . . Scan Component 1 | . . . 1 . . . . . . . . . Repair 1 | . . . 1 . . . . . . . . . Recycling Unit Hacks . | . . . . . . . . . . . . . Scanalyzer . | . . . . . . . . . . . . . Garrison Access Hacks . | . . . . . . . . . . . . . Unauthorized Hacks 1 | . . . . . . . . . 1 . . . Terminals . | . . . . . . . . . . . . . Fabricators . | . . . . . . . . . . . . . Repair Stations . | . . . . . . . . . . . . . Recycling Units 1 | . . . . . . . . . 1 . . . Monitor 1 | . . . . . . . . . 1 . . . Scanalyzers . | . . . . . . . . . . . . . Garrison Access . | . . . . . . . . . . . . . Data Cores Recovered . | . . . . . . . . . . . . . Used . | . . . . . . . . . . . . . Hacking Detections 7 | . 4 . 1 . . . . 1 1 . . . Full Trace Events 1 | . . . . . . . . . 1 . . . Feedback Events . | . . . . . . . . . . . . . Feedback Blocked . | . . . . . . . . . . . . . Robot Schematics Acquired 4 | . . . . . . . . . . . . 4 Robots Built . | . . . . . . . . . . . . . Authchips . | . . . . . . . . . . . . . Time . | . . . . . . . . . . . . . Total Robot Build Rating . | . . . . . . . . . . . . . Part Schematics Acquired 15 | . . . . . . . . . . . . 15 Parts Built . | . . . . . . . . . . . . . Authchips . | . . . . . . . . . . . . . Time . | . . . . . . . . . . . . . Total Part Build Rating . | . . . . . . . . . . . . . Parts Repaired 1 | . . . 1 . . . . . . . . . Time 70 | . . . 70 . . . . . . . . . Parts Recycled . | . . . . . . . . . . . . . Recycled Matter . | . . . . . . . . . . . . . Retrieved Matter . | . . . . . . . . . . . . . Retrieved Components . | . . . . . . . . . . . . . Parts Scanalyzed . | . . . . . . . . . . . . . Part Schematics Acquired . | . . . . . . . . . . . . . Parts Damaged . | . . . . . . . . . . . . . Bothacking | -11 -10 -10 -9 -9 -9 -8 -8 -8 -7 -7 -7 -7 ------------ Run | Scr Mat Min Mat Min Exi Min Mat Sto Fac Low Low Zio Used RIF Installer . | . . . . . . . . . . . . . Robots Hacked . | . . . . . . . . . . . . . Non-combat . | . . . . . . . . . . . . . Combat . | . . . . . . . . . . . . . Robot Hacks Applied . | . . . . . . . . . . . . . Relay Couplers Released . | . . . . . . . . . . . . . Fabnet Peak Effective % . | . . . . . . . . . . . . . Robots Rewired . | . . . . . . . . . . . . . Allies Hacked . | . . . . . . . . . . . . . Hacks Repelled . | . . . . . . . . . . . . . Allies | -11 -10 -10 -9 -9 -9 -8 -8 -8 -7 -7 -7 -7 -------- Run | Scr Mat Min Mat Min Exi Min Mat Sto Fac Low Low Zio Total Allies 3 | . . . . . . . . . . . . 3 Largest Group 2 | . . . . . . . . . . . . 2 Highest-Rated Group 63 | . . . . . . . . . . . . 63 Highest-Rated Ally 38 | . . . . . . . . . . . . 38 Total Orders . | . . . . . . . . . . . . . Ally Attacks 17 | . . . . . . . . . . . . 17 Total Damage 626 | . . . . . . . . . . . . 626 Kills 7 | . . . . . . . . . . . . 7 Allies Corrupted . | . . . . . . . . . . . . . Allies Melted . | . . . . . . . . . . . . . Field Lobotomies 3 | . . . . . . . . . . . . 3 Intel | -11 -10 -10 -9 -9 -9 -8 -8 -8 -7 -7 -7 -7 ------- Run | Scr Mat Min Mat Min Exi Min Mat Sto Fac Low Low Zio Robot Analysis Total . | . . . . . . . . . . . . . Derelict Logs Recovered 3 | . . 1 . . . . . . . . . 2 Drone Launches . | . . . . . . . . . . . . . Drone Recoveries . | . . . . . . . . . . . . . Exploration | -11 -10 -10 -9 -9 -9 -8 -8 -8 -7 -7 -7 -7 ------------- Run | Scr Mat Min Mat Min Exi Min Mat Sto Fac Low Low Zio Turns Passed 16198 | . 778 929 1011 68 633 1043 767 947 1775 1323 2695 4229 Spaces Moved 5491 | 1 402 328 299 32 331 316 241 426 649 432 365 1669 Core 179 | . . . . . . . . . . 3 176 . Treads 679 | . . . 83 . . . . . 170 349 58 19 Legs 4633 | 1 402 328 216 32 331 316 241 426 479 80 131 1650 Wheels . | . . . . . . . . . . . . . Hover . | . . . . . . . . . . . . . Flight . | . . . . . . . . . . . . . Fastest Speed 120 | 120 120 120 190 190 190 190 120 120 190 240 320 137 Average Speed 238 | 120 120 187 217 190 190 190 126 150 218 274 721 231 Slowest Speed 1100 | 120 190 190 330 190 190 190 190 260 320 1000 1100 410 Overloaded Moves . | . . . . . . . . . . . . . Propulsion Burnouts . | . . . . . . . . . . . . . Robots Hopped . | . . . . . . . . . . . . . Cave-ins Triggered . | . . . . . . . . . . . . . Exploration Rate (%) 45 | 2 66 75 19 12 63 64 23 61 16 49 58 84 Regions Visited 12 Branch Regions 8 Pre-discovered Areas 1 | . . . . . . . . . . . . 1 Known Exits Taken 9 | . 1 1 1 1 1 1 1 1 1 . . . Unknown Exits Taken 3 | 1 . . . . . . . . . 1 1 . Scrap Searched 11 | . . 2 . . . . . . . 2 3 4 Spaces Dug 13 | . . . . . . 2 1 2 6 . . 2 Terrain Destroyed 138 | . . 56 12 . . 17 17 16 7 3 5 5 Melee 10 | . . . . . . . . 2 6 . . 2 Projectile 62 | . . . 12 . . 17 9 14 1 3 5 1 AOE 66 | . . 56 . . . . 8 . . . . 2 Terrain Rammed . | . . . . . . . . . . . . . Walls Destroyed . | . . . . . . . . . . . . . Machines Disabled . | . . . . . . . . . . . . . Actions | -11 -10 -10 -9 -9 -9 -8 -8 -8 -7 -7 -7 -7 --------- Run | Scr Mat Min Mat Min Exi Min Mat Sto Fac Low Low Zio Total 7946 | . 631 612 595 40 335 710 667 612 928 498 391 1927 Wait 1852 | . 167 249 188 9 1 364 396 96 190 27 4 161 Move 5479 | . 401 327 298 31 330 315 240 425 648 431 364 1669 Hop . | . . . . . . . . . . . . . Pick Up 81 | . 12 6 23 . 1 1 5 7 14 1 2 9 Fast Attach 53 | . 2 2 10 . . 1 2 9 14 . 3 10 Attach 32 | . . . 5 . . . 2 10 3 5 2 5 Detach 12 | . . 1 1 . . . . 3 2 . . 5 Swap 28 | . . 4 3 . 2 1 . . 4 2 . 12 Drop 77 | . 10 2 27 . 1 3 5 5 16 . . 8 Fire 266 | . 39 21 40 . . 25 17 31 7 29 16 41 Melee 62 | . . . . . . . . 24 30 1 . 7 Ram . | . . . . . . . . . . . . . Kick 2 | . . . . . . . . 2 . . . . Crush . | . . . . . . . . . . . . . Escape Stasis . | . . . . . . . . . . . . . Rewire . | . . . . . . . . . . . . . Trap 2 | . . . . . . . . . . 2 . . Miscellaneous . | . . . . . . . . . . . . . Route ------- -11/Scrapyard -10/Materials (discovered 4 exits: *Mat x3 / *Min) -10/Mines (discovered 2 exits: *Mat x2) -9/Materials (discovered 2 exits: *Min x2) -9/Mines -9/Exiles -8/Mines -8/Materials (discovered 2 exits: *Fac / *Sto) -8/Storage -7/Factory (discovered 3 exits: *Fac / *Low x2) -7/Lower Caves -7/Lower Caves -7/Zion (discovered 2 exits: [*Dee] / [*Pro]) History --------- Turn | Location | Event 1 | -11/Scrapyard | Discovered new exit (range 0) 1 | -11/Scrapyard | Entered Materials 312 | -10/Materials | Build established: Mutant 351 | -10/Materials | Discovered new exit (range 14) 599 | -10/Materials | Discovered new exit (range 3) 725 | -10/Materials | Identified exit to Mines 763 | -10/Materials | Discovered new exit (range 16) 779 | -10/Materials | Entered Mines 780 | -10/Mines | YI-UF0 nonchalantly dropped a Grenade Launcher on the ground 843 | -10/Mines | Assembled infested the area 848 | -10/Mines | Assisted by a Guerilla fighting off Assembled 1125 | -10/Mines | Core integrity fell below 50% 1372 | -10/Mines | Identified exit to Materials 1667 | -10/Mines | Found a damaged Exp. Sensor Array with a note attached 1671 | -10/Mines | Found Prototype Device 1704 | -10/Mines | Discovered exit to Materials (range 14) 1708 | -10/Mines | Entered Materials 1708 | -9/Materials | Evolved 2 slots: Utility x2 1989 | -9/Materials | Identified exit to Mines 2307 | -9/Materials | Repaired Corrupted Flexi-carbon Leg 2719 | -9/Materials | Entered Mines 2762 | -9/Mines | Discovered new exit (range 12) 2778 | -9/Mines | Deemed a non-threat by the Exiles lab entrance 2784 | -9/Mines | Identified exit to Exiles 2787 | -9/Mines | Entered Exiles 2831 | -9/Exiles | Met 8R-AWN 2865 | -9/Exiles | Met EX-HEX 2922 | -9/Exiles | Met EX-BIN 2945 | -9/Exiles | Aligned with FarCom system 2947 | -9/Exiles | Given EX-Vault access code 2996 | -9/Exiles | Opened EX-Vault 3012 | -9/Exiles | Found Field Lobotomy Kit 3057 | -9/Exiles | Warned to stay clear of 0b10 Research branches 3308 | -9/Exiles | Met EX-DEC 3395 | -9/Exiles | Discovered new exit (range 14) 3418 | -9/Exiles | Identified exit to Mines 3420 | -9/Exiles | Left Exiles lab with Field Lobotomy Kit 3420 | -9/Exiles | Entered Mines 3707 | -8/Mines | Build established: Skirmisher 4408 | -8/Mines | Discovered new exit (range 6) 4446 | -8/Mines | Identified exit to Materials 4463 | -8/Mines | Entered Materials 4463 | -8/Materials | Evolved 2 slots: Propulsion x1, Weapon x1 4791 | -8/Materials | Build established: Scavenger-Skirmisher 5036 | -8/Materials | Discovered new exit (range 12) 5139 | -8/Materials | Identified exit to Factory 5225 | -8/Materials | Discovered new exit (range 3) 5228 | -8/Materials | Identified exit to Storage 5230 | -8/Materials | Entered Storage 5671 | -8/Storage | Core integrity fell below 50% 5728 | -8/Storage | Lost 11 parts (2p3n2u4w) 5925 | -8/Storage | Build established: Mutant 6073 | -8/Storage | Core integrity fell below 20% 6117 | -8/Storage | Discovered exit to Factory (range 16) 6177 | -8/Storage | Entered Factory 6177 | -7/Factory | Evolved 2 slots: Propulsion x1, Utility x1 6775 | -7/Factory | Identified exit to Lower Caves 7188 | -7/Factory | Discovered new exit (range 4) 7197 | -7/Factory | Identified exit to Factory 7197 | -7/Factory | System corruption reached 10% 7703 | -7/Factory | Identified Exp. Sensor Array 7707 | -7/Factory | Build established: Scavenger-Skirmisher 7952 | -7/Factory | Entered Lower Caves 8336 | -7/Lower Caves | Build established: Scavenger-Gunner 8602 | -7/Lower Caves | Encountered a Warlord checkpoint 8942 | -7/Lower Caves | Lost 4 parts (3n1w) 8987 | -7/Lower Caves | Learned Factory trap positions 8987 | -7/Lower Caves | Learned Factory security intel 8987 | -7/Lower Caves | Learned Research garrison access intel 9231 | -7/Lower Caves | Discovered new exit (range 3) 9275 | -7/Lower Caves | Entered another Lower Caves area 9326 | -7/Lower Caves | Build established: Gunner 9573 | -7/Lower Caves | Core integrity fell below 50% 11890 | -7/Lower Caves | Discovered new exit (range 7) 11970 | -7/Lower Caves | Entered Zion 12048 | -7/Zion | Found Prototype Device 12141 | -7/Zion | Learned Factory garrison access intel 12178 | -7/Zion | Discovered new exit (range 16) 12263 | -7/Zion | Build established: Mutant 12267 | -7/Zion | Found Prototype Special Weapon 12267 | -7/Zion | Identified RU-N14's Throwing Claymores 12377 | -7/Zion | System corruption cleaned by Quarantine Array 12464 | -7/Zion | Found RU-N14's Throwing Claymores 12469 | -7/Zion | Found RU-N14's Throwing Claymores 12474 | -7/Zion | Found RU-N14's Throwing Claymores 12761 | -7/Zion | Build established: Gunner 12881 | -7/Zion | Learned location of 1 exit from Factory 13152 | -7/Zion | Build established: Mutant 13597 | -7/Zion | Build established: Derelict-Mutant 13907 | -7/Zion | Received a visual enhancement algorithm 14670 | -7/Zion | Rebuked by Imprinter 15665 | -7/Zion | Discovered new exit (range 5) 15667 | -7/Zion | Saw the warning signs outside the Deep Caves entrance 15877 | -7/Zion | Attacked by Zionites 15949 | -7/Zion | Core integrity fell below 20% 15952 | -7/Zion | Assimilated KE-WIL(z) with FLK Orb 15987 | -7/Zion | Identified Phasing AFG 16100 | -7/Zion | Assimilated CR-A16 with FLK Orb 16103 | -7/Zion | Assimilated D4-GYD(l) with FLK Orb 16199 | -7/Zion | Destroyed by TJ-JCB(z) with Makeshift Laser Last Messages --------------- 16166_ UF-RJ6(g) destroyed. 16174_ Acquired 9 matter. 16176_ Acquired 7 matter. 16176_ 7T-9V4(z) destroyed. RP-12M(z) bursts out of the Twisted Machinery. 16177_ Acquired 8 matter. 16178_ RP-12M(z) pulls a Mak. Shrapnel Gun out of the Twisted Machinery. 16178_ CR-A16 destroyed. 16180_ Mak. Leg destroyed. 7B-5YO(z) bursts out of the Twisted Machinery. 16183_ RU-VPH(z) destroyed. 16184_ Slug penetrates JJ-VXX(z). 16184_ JJ-VXX(z) destroyed. [Achievement: Monster] 16184_ Slug penetrates Wall. 16188_ Nuclear Core destroyed. 16190_ Acquired 23 matter. 16194_ Acquired Mak. Leg. 16197_ TJ-JCB(z) pulls a Mak. Laser out of the Twisted Machinery. 16199_ Acquired 25 matter. Map ----- +----------------------------------------------------+ | ?????????????????????????????????????????????????? | | ?????????????????????????????????????????????????? | | ?????????????????????????????????????????????????? | | ?????????????????????????????????????????????????? | | ?????????????????????????????????????????????????? | | ??????????????????????##?####"#??????????????????? | | ??????????????????????#"##"#""#??????????????????? | | ?????????????????????##"""""""##???##???? ???????? | | ???????????????????###"" """####"#""""##?# ???? | | ???????####???????##"""" """#""#"""""""" "" | | ????#?##"""###???##""""" """"""" """"" "# | | ????#"#""""""#####""" """ "# | | ?????#"" ""#""""" "" | | ????##" """""" " | | ????#"" ## ## """" "" """""" | | ????#"" # # """" "" """""" | | ????"#" z """ """" " """" | | #####"" """ "" " """ | | ""#"""" "" """ " """ | | """""" "" # # """ """ | | X""" """ ## """ "" | | """ """ " """ """ """ | | """ """ % [ """"" """" "" | | = !%% """"" | | "" *%* """ """"" | | """""""" "" @=! z | | """#"##" == g | | "#"####"" | | ####??##"" ! "" """""" "" | | ???????#"" z */ """""""""""" | | ???????#"" "" " z """"#"""""#"""" " | | ???????#"" "" """ """####"##"#""" " | | ???????#" " """ """#?"###?##"""" "" "" | | ??????#"" """ """" """"##""#???##""""""""""" | | ??????#"" """ """""##????###""""#"#"# | | ?????#""" ""#"!!! """#??????###"""#### | | ?????""" """"""""""" """#????????####???? | | ?????"""""""#"""#""""" ""#???????????????? | | ??????##"""###"#"""#"" "##???????????????? | | ??????#####"##"" """"" "##???????????????? | | ??????#"" """"" #""" ""#???????????????? | | ??????#" / #"" " "" ""#???????????????? | | ??????#"" " """"""#???????????????? | | ??????#" *! = %= """""""##???????????????? | | ####?##"" ! = !%* ""#""#"#????????????????? | | #""###""= = """ #"####??????????????????? | | """# " = /*% """ %""##????????????????????? | | "= =* = "" ["""#????????????????????? | | /!=* ![%% % #""#????????????????????? | | ! !*%/ " %*= ! """#????????????????????? | +----------------------------------------------------+ Best States ------------- Heat Dissipation 50 Coolant Potential 65 Energy Generation 14 Energy Capacity 280 Matter Stores 300 Matter Capacity 300 Sight Range 18 Terrain Scan Range 16 Terrain Scan Density 110 Armor Coverage 300 Resistance: KI 20 Evasion (%) 55 Melee Accuracy 6 Core Analysis 6 Armor Integrity Analysis 30 Recoil Reduction 2 Authchip Count 1 Item Schematics ----------------- Energy Well | -7/Zion | Archive Arc Projector | -7/Zion | Archive Imp. EM Pulse Cannon | -7/Zion | Archive Remote Shield | -7/Zion | Archive Imp. Melee Analysis Suite | -7/Zion | Archive Adv. Field Recycling Unit | -7/Zion | Archive Hvy. Phase Cannon | -7/Zion | Archive Imp. Field Recycling Unit | -7/Zion | Archive Fusion Compressor | -7/Zion | Archive Adv. Sensor Array | -7/Zion | Archive Gatling Laser | -7/Zion | Archive Mak. Flight Unit | -7/Zion | Archive Thermic Laser | -7/Zion | Archive Angular Momentum Engine | -7/Zion | Archive Mak. Axe | -7/Zion | Archive Robot Schematics ------------------ A-02 Transporter | -7/Zion | Archive S-27 Virus | -7/Zion | Archive R-06 Scavenger | -7/Zion | Archive D-83 Annihilator | -7/Zion | Archive Fabricated ------------ Nothing Alien Tech Used ----------------- None Achievements -------------- Monster Challenges ------------ None Game ------ Seed WardroneAntigravCorpse Manual? 0 Play Time 01:25:15 Cumulative 77.6 hours Start 2022.05.23 @ 20:51:04 End 2022.05.24 @ 21:23:42 Sessions 3 Manual Loads 0 Difficulty Rogue Special Mode None Game No. 86 Rogue 86 Adventurer 0 Explorer 0 Win Type - Total 0 Types 0/0/0/0/0/0/0/0/0 Lore% 41 Gallery% 52 Achievement% 39 Wizard Run 0 Options --------- ASCII 0 Keyboard 0 Movement Mouse Keybinds 0 Fullscreen 1 Font 18/SmallcapsGlow Map View 76x50 Tactical HUD 1 Map Filters NONE Filters NONE Steam 1 RUN: 12502457-9a41-410b-871e-448d173c6be3